bitfinex-derivatives/quotes_BNBF0:USTF0_20250708
["timestamp","ask_amount","ask_price","bid_price","bid_amount"]
[1751970440517,1.7025825,660.28,659.9,1.577]
[1751970443115,1.7025825,660.27,659.9,1.577]
[1751970443313,1.7025825,660.27,659.9,3.28074963]
[1751970444214,1.7025825,660.27,659.9,1.577]
[1751970445520,1.7025825,660.27,659.9,3.28074963]
[1751970446218,1.7025825,660.27,659.9,1.577]
[1751970447019,1.7025825,660.26,659.91,1.70374963]
[1751970450127,1.7025825,660.25,659.92,1.70374963]
[1751970450326,1.7025825,660.25,659.93,1.70374963]
[1751970450527,1.7025825,660.26,659.91,1.70374963]
[1751970454032,1.7025825,660.25,659.91,1.70374963]
[1751970454533,1.7025825,660.25,659.92,2.282]
[1751970455038,1.7025825,660.27,659.92,2.282]
[1751970458638,1.7025825,660.28,659.92,2.282]
[1751970464942,1.7025825,660.27,659.92,2.282]
[1751970466542,1.7025825,660.28,659.92,2.282]
[1751970467446,1.7025825,660.29,659.92,2.282]
[1751970468546,1.7025825,660.28,659.92,2.282]
[1751970469147,1.7025825,660.29,659.92,2.282]
[1751970470747,1.7025825,660.28,659.92,2.282]
[1751970476248,1.7025825,660.27,659.92,2.282]
[1751970477251,1.7025825,660.25,659.92,2.282]
[1751970478252,1.7025825,660.27,659.92,2.282]
[1751970478851,1.7025825,660.26,659.92,2.282]
[1751970479048,1.7025825,660.27,659.92,2.282]
[1751970479954,1.7025825,660.29,659.92,2.282]
[1751970487153,1.7025825,660.31,659.92,2.282]
[1751970487858,1.7025825,660.32,659.92,2.282]
[1751970489758,1.7025825,660.31,659.92,2.282]
[1751970490960,1.7025825,660.32,659.92,2.282]
[1751970494764,1.7025825,660.31,659.92,2.282]
[1751970497167,1.7025825,660.3,659.92,2.282]
[1751970497771,1.7025825,660.29,659.92,2.282]
[1751970499671,1.7025825,660.3,659.92,2.282]
[1751970500871,1.7025825,660.28,659.92,2.282]
[1751970501671,1.7025825,660.27,659.92,2.282]
[1751970503572,1.7025825,660.27,659.87,1.70374963]
[1751970505375,1.7025825,660.27,659.86,1.70374963]
[1751970506270,1.7025825,660.27,659.87,2.265]
[1751970509483,1.7025825,660.25,659.89,1.70374963]
[1751970510183,1.7025825,660.33,659.87,2.265]
[1751970515186,1.7025825,660.32,659.87,2.265]
[1751970515786,1.7025825,660.33,659.87,2.265]
[1751970517086,1.7025825,660.32,659.87,2.265]
[1751970517386,1.7025825,660.33,659.87,2.265]
[1751970517784,1.7025825,660.34,659.87,2.265]
[1751970518287,1.7025825,660.33,659.87,2.265]
[1751970520085,1.7025825,660.28,659.87,2.265]
[1751970520793,1.7025825,660.29,659.87,2.265]
[1751970521793,1.7025825,660.28,659.87,2.265]
[1751970523396,1.7025825,660.29,659.87,2.265]
[1751970526695,1.7025825,660.27,659.87,3.96874963]
[1751970527603,1.7025825,660.25,659.89,1.70374963]
[1751970527799,1.7025825,660.26,659.89,1.70374963]
[1751970528396,1.7025825,660.25,659.89,1.70374963]
[1751970530596,1.7025825,660.28,659.87,2.265]
[1751970531596,1.7025825,660.3,659.87,2.265]
[1751970535401,1.7025825,660.29,659.87,2.265]
[1751970539604,1.7025825,660.3,659.87,2.265]
[1751970540504,1.7025825,660.29,659.87,2.265]
[1751970541700,1.7025825,660.27,659.87,3.96874963]
[1751970544505,1.7025825,660.27,659.87,2.265]
[1751970546200,0.26359143,660.5,659.87,2.265]
[1751970546201,1.7025825,660.28,659.87,2.265]
[1751970546804,1.7025825,660.27,659.87,2.265]
[1751970547402,2.26355053,660.42,659.87,2.265]
[1751970547606,1.70271886,660.27,659.87,2.265]
[1751970549410,1.70271886,660.26,659.88,1.70393388]
[1751970549610,1.70271886,660.26,659.89,1.70393388]
[1751970551711,1.70271886,660.27,659.87,3.96893388]
[1751970552913,1.70271886,660.27,659.87,2.265]
[1751970553213,1.70271886,660.27,659.87,3.96893388]
[1751970553413,1.70271886,660.26,659.88,1.70393388]
[1751970556014,1.70271886,660.26,659.89,1.70393388]
[1751970556612,1.70271886,660.27,659.87,3.96893388]
[1751970557617,1.70271886,660.26,659.87,3.96893388]
[1751970558217,1.70271886,660.26,659.88,1.70393388]
[1751970559018,1.70271886,660.28,659.87,2.265]
[1751970561215,1.70271886,660.29,659.87,2.265]
[1751970561622,1.70271886,660.28,659.87,2.265]
[1751970561820,1.70271886,660.29,659.87,2.265]
[1751970562316,0.26359143,660.5,659.87,2.265]
[1751970565422,1.7028468,660.29,659.87,2.265]
[1751970566320,1.7028468,660.29,659.84,1.7040631]
[1751970567625,1.7028468,660.29,659.83,1.7040631]
[1751970569022,2.2704624,660.45,659.69,0.26357347]
[1751970569226,1.7028521,660.28,659.85,1.7040685]
[1751970569626,1.7028521,660.29,659.84,1.7040685]
[1751970570325,1.7028521,660.29,659.85,2.099]
[1751970571129,1.7028521,660.28,659.85,3.8030685]
[1751970572026,1.7028521,660.3,659.85,2.099]
[1751970574927,2.2704624,660.47,659.85,2.099]
[1751970575232,1.7026751,660.3,659.85,2.099]
[1751970577441,1.7026751,660.29,659.85,2.099]
[1751970579044,1.7026751,660.3,659.85,2.099]
[1751970579244,1.7026751,660.29,659.85,2.099]
[1751970582043,1.7026751,660.27,659.87,1.7040831]
[1751970584853,1.7026751,660.26,659.87,1.7040831]
[1751970586451,0.26359143,660.5,659.85,2.099]
[1751970586452,1.7026751,660.29,659.85,2.099]
[1751970588852,1.7026751,660.28,659.85,3.8030831]
[1751970593661,1.7026751,660.35,659.85,2.099]
[1751970594560,1.7026751,660.35,659.73,1.7040831]
[1751970594762,1.7026751,660.34,659.73,1.7040831]
[1751970596262,1.7026751,660.35,659.73,1.7040831]
[1751970596463,1.7026751,660.34,659.74,1.7040831]
[1751970596662,1.7026751,660.34,659.73,1.7040831]
[1751970596860,1.7026751,660.27,659.66,1.7040831]
[1751970597362,1.7026751,660.28,659.65,1.7040831]
[1751970597560,1.7026751,660.28,659.67,1.786]
[1751970597760,1.7026751,660.29,659.67,1.786]
[1751970598259,1.7026751,660.31,659.67,1.786]
[1751970602470,1.7026751,660.32,659.67,1.786]
[1751970604671,1.7026751,660.33,659.67,1.786]
[1751970605571,1.7026751,660.34,659.67,1.786]
[1751970607770,1.7026751,660.31,659.67,1.786]
[1751970607969,1.7026751,660.45,659.72,1.7040831]
[1751970608272,1.7026751,660.44,659.72,1.7040831]
[1751970608771,1.7026751,660.44,659.71,1.7040831]
[1751970608972,1.7026751,660.45,659.73,1.7040831]
[1751970609172,1.7026751,660.45,659.74,1.7040831]
[1751970612476,1.7026751,660.45,659.73,1.7040831]
[1751970613270,1.7026751,660.45,659.74,1.859]
[1751970613474,1.7026751,660.46,659.74,1.859]
[1751970617878,1.7026751,660.41,659.81,1.7040831]
[1751970618578,1.7026751,660.39,659.83,1.7040831]
[1751970619079,1.7026751,660.38,659.85,1.7040831]
[1751970622291,1.7026751,660.39,659.84,1.7040831]
[1751970622991,1.7026751,660.38,659.84,1.7040831]
[1751970623688,1.7026751,660.39,659.83,1.7040831]
[1751970623888,1.7026751,660.4,659.83,1.7040831]
[1751970624592,1.7026751,660.4,659.82,1.7040831]
[1751970624892,1.7026751,660.41,659.81,1.7040831]
[1751970625395,1.7026751,660.4,659.82,1.7040831]
[1751970625690,1.7026751,660.4,659.83,1.7040831]
[1751970625989,1.7026751,660.39,659.84,1.7040831]
[1751970626293,1.7026751,660.36,659.88,1.7040831]
[1751970627093,1.6984852,660.36,659.88,1.7003853]
[1751970628088,1.6984852,660.35,659.89,1.7003853]
[1751970628390,1.6984852,660.36,659.89,1.7003853]
[1751970628594,1.6984852,660.36,659.88,1.7003853]
[1751970629695,1.6984852,660.37,659.86,1.7003853]
[1751970629994,1.6984852,660.37,659.87,1.7003853]
[1751970630195,1.6984852,660.37,659.86,1.7003853]
[1751970630392,2.2704624,660.5,659.86,1.7003853]
[1751970630393,1.6984852,660.38,659.86,1.7003853]
[1751970630794,1.6984852,660.36,659.88,1.7003853]
[1751970630997,1.6984852,660.37,659.87,1.7003853]
[1751970631196,1.6984852,660.39,659.84,1.7003853]
[1751970631498,1.6984852,660.39,659.83,1.7003853]
[1751970631700,1.6984852,660.39,659.84,1.7003853]
[1751970634297,1.6984852,660.38,659.85,1.7003853]
[1751970634595,1.6984852,660.39,659.84,1.7003853]
[1751970639796,1.6984852,660.4,659.83,1.7003853]
[1751970640695,1.6984852,660.4,659.82,1.7003853]
[1751970643100,1.6984852,660.4,659.83,1.7003853]
[1751970644300,1.6984852,660.39,659.84,1.7003853]
[1751970645204,1.6984852,660.39,659.85,1.7003853]
[1751970648806,1.6984852,660.38,659.85,1.7003853]
[1751970649302,1.6984852,660.39,659.84,1.7003853]
[1751970649504,1.6984852,660.39,659.74,1.859]
[1751970649505,1.6984852,660.38,659.86,1.7003853]
[1751970650301,1.6984852,660.37,659.87,1.7003853]
[1751970650604,1.6984852,660.36,659.88,1.7003853]
[1751970650904,1.6984852,660.36,659.89,1.7003853]
[1751970651401,1.6984852,660.36,659.88,1.7003853]
[1751970651700,1.6984852,660.36,659.89,1.7003853]
[1751970652804,1.6984852,660.36,659.88,1.7003853]
[1751970653201,1.6984852,660.36,659.89,1.7003853]
[1751970653406,1.6984852,660.36,659.88,1.7003853]
[1751970653907,1.6984852,660.36,659.89,1.7003853]
[1751970654605,1.6984852,660.39,659.84,1.7003853]
[1751970657906,1.6984852,660.38,659.84,1.7003853]
[1751970659306,1.6984852,660.37,659.85,1.7003853]
[1751970659803,1.6984852,660.37,659.86,1.554]
[1751970661909,1.6984852,660.37,659.86,3.2543853]
[1751970663408,1.6984852,660.36,659.87,1.7003853]
[1751970664206,1.6984852,660.39,659.86,1.554]
[1751970664604,1.6984852,660.38,659.86,1.554]
[1751970665309,1.6984852,660.37,659.86,1.554]
[1751970666411,1.6984852,660.36,659.86,1.554]
[1751970667412,1.6984852,660.33,659.86,3.2543853]
[1751970669713,1.6984852,660.33,659.87,1.7003853]
[1751970670311,1.6984852,660.33,659.86,3.2543853]
[1751970674116,1.6984852,660.3,659.91,1.7003853]
[1751970674312,1.6984852,660.35,659.86,1.554]
[1751970678416,1.6984852,660.36,659.86,1.554]
[1751970678616,1.6984852,660.35,659.86,1.554]
[1751970684128,1.6984852,660.33,659.86,1.554]
[1751970684427,1.6984852,660.33,659.87,1.7003853]
[1751970687930,1.6984852,660.31,659.89,1.7003853]
[1751970688129,1.6984852,660.3,659.92,1.7003853]
[1751970690633,1.6984852,660.29,659.92,1.7003853]
[1751970691531,1.6984852,660.28,659.94,1.7003853]
[1751970692928,1.7017386,660.28,659.94,1.7036992]
[1751970694235,1.7017386,660.29,659.94,1.7036992]
[1751970694535,1.7017386,660.3,659.91,1.7036992]
[1751970698640,1.7017386,660.3,659.86,1.554]
[1751970698641,1.7017386,660.3,659.92,1.7036992]
[1751970704250,1.7017386,660.29,659.92,1.7036992]
[1751970704450,1.7017386,660.28,659.95,1.7036992]
[1751970707449,1.7017386,660.28,659.94,1.7036992]
[1751970709950,1.7017386,660.3,659.92,1.7036992]
[1751970713752,2.2704624,660.42,659.86,1.554]
[1751970713952,1.7018275,660.3,659.92,1.7038234]
[1751970716757,1.7018275,660.29,659.92,1.7038234]
[1751970716957,1.7018275,660.29,659.93,1.7038234]
[1751970717457,1.7018275,660.31,659.9,1.7038234]
[1751970718160,1.7018275,660.31,659.91,1.768]
[1751970719161,1.7018275,660.36,659.91,1.768]
[1751970719456,1.7018275,660.37,659.91,1.768]
[1751970723265,1.7018275,660.36,659.91,1.768]
[1751970724166,1.7018275,660.37,659.91,1.768]
[1751970725267,1.7018275,660.35,659.91,1.768]
[1751970726168,1.7018275,660.34,659.91,1.768]
[1751970726369,1.7018275,660.33,659.91,3.4718234]
[1751970728068,1.7018275,660.34,659.91,1.768]
[1751970730575,1.7018275,660.35,659.91,1.768]
[1751970731172,2.2704624,660.5,659.91,1.768]
[1751970731376,1.7016573,660.35,659.91,1.768]
[1751970738076,1.7016573,660.34,659.91,1.768]
[1751970740384,2.2704624,660.48,659.91,1.768]
[1751970740584,1.7014737,660.33,659.92,1.7034168]
[1751970744487,1.7014737,660.31,659.94,1.7034168]
[1751970747592,1.7014737,660.33,659.93,1.7034168]
[1751970747988,1.7014737,660.32,659.93,1.7034168]
[1751970748292,1.7014737,660.34,659.91,1.768]
[1751970751994,1.7014737,660.35,659.91,1.768]
[1751970753694,1.7014737,660.36,659.91,1.768]
[1751970754697,1.7014362,660.36,659.91,1.768]
[1751970757302,1.7014362,660.37,659.91,1.768]
[1751970758198,1.7014362,660.36,659.87,1.7033786]
[1751970760901,1.7014362,660.36,659.88,2.166]
[1751970761803,1.7014362,660.36,659.88,3.8693786]
[1751970762401,1.7014362,660.35,659.88,3.8693786]
[1751970764306,1.7014362,660.35,659.89,1.7033786]
[1751970766404,1.7014362,660.34,659.9,1.7033786]
[1751970767208,1.7014362,660.32,659.93,1.7033786]
[1751970769009,1.7014362,660.33,659.91,1.7033786]
[1751970769410,1.7014362,660.33,659.88,2.166]
[1751970769411,1.7014362,660.33,659.92,1.7033786]
[1751970770012,1.7014362,660.32,659.93,1.7033786]
[1751970771715,1.7014362,660.33,659.92,1.7033786]
[1751970771909,1.7014362,660.32,659.93,1.7033786]
[1751970772913,1.7014362,660.33,659.91,1.7033786]
[1751970774613,1.7014362,660.33,659.92,1.7033786]
[1751970776716,1.7014362,660.33,659.91,1.7033786]
[1751970777611,1.7014362,660.34,659.9,1.7033786]
[1751970778915,1.7014362,660.33,659.91,1.7033786]
[1751970779214,1.7014362,660.34,659.91,1.7033786]
[1751970779411,1.7014362,660.33,659.91,1.7033786]
[1751970782716,1.7014362,660.33,659.92,1.7033786]
[1751970782918,1.7014362,660.34,659.89,1.7033786]
[1751970785322,1.7014362,660.34,659.9,1.7033786]
[1751970786222,1.7014362,660.34,659.89,1.7033786]
[1751970787526,1.7014362,660.34,659.9,1.7033786]
[1751970789628,1.7014362,660.36,659.88,2.166]
[1751970792727,1.7014362,660.35,659.88,3.8693786]
[1751970796131,1.7014362,660.35,659.89,1.7033786]
[1751970796933,0.97873966,660.5,659.88,2.166]
[1751970797136,1.7021178,660.35,659.89,1.7040612]
[1751970797338,1.7021178,660.34,659.88,3.8700612]
[1751970799239,1.7021178,660.3,659.94,1.7040612]
[1751970801737,1.7021178,660.31,659.95,1.7040612]
[1751970804136,1.7021178,660.33,659.92,1.7040612]
[1751970804542,0.26357147,660.6,659.88,2.166]
[1751970804543,1.7021178,660.39,659.98,1.7040612]
[1751970805440,1.7021178,660.4,659.97,1.7040612]
[1751970807346,1.7021178,660.4,659.96,1.7040612]
[1751970808546,1.7021178,660.41,659.96,1.7040612]
[1751970811852,1.7021178,660.41,659.97,1.958]
[1751970812049,1.700703,660.41,659.97,1.958]
[1751970812855,1.700703,660.42,659.97,1.958]
[1751970813351,1.700703,660.43,659.97,1.958]
[1751970814051,1.700703,660.41,659.97,3.6603254]
[1751970814250,1.700703,660.41,659.97,1.958]
[1751970814550,1.700703,660.42,659.97,1.958]
[1751970821663,1.700703,660.41,659.97,1.958]
[1751970822760,1.700703,660.4,659.97,1.958]
[1751970824163,1.700703,660.39,659.97,3.6603254]
[1751970825965,0.97758956,660.5,659.97,3.6603254]
[1751970825966,1.700703,660.4,659.97,1.958]
[1751970826764,1.700703,660.39,659.97,3.6603254]
[1751970827671,1.700703,660.4,659.97,1.958]
[1751970828567,1.700703,660.4,659.97,3.6603254]
[1751970828769,1.700703,660.39,659.97,3.6603254]
[1751970829066,1.700703,660.4,659.97,1.958]
[1751970831672,1.700703,660.46,659.97,1.958]
[1751970831970,1.700703,660.45,659.97,1.958]
[1751970841578,1.700703,660.41,659.97,1.958]
[1751970841878,0.2635575,660.6,659.97,1.958]
[1751970841879,1.700703,660.42,659.97,1.958]
[1751970844576,1.700703,660.41,659.97,1.958]
[1751970844775,1.700703,660.42,659.97,1.958]
[1751970846278,1.700703,660.41,659.97,1.958]
[1751970847379,1.700703,660.42,659.97,1.958]
[1751970850586,1.700703,660.41,659.97,1.958]
[1751970851487,1.700703,660.42,659.97,1.958]
[1751970851791,1.700703,660.41,659.97,1.958]
[1751970852290,1.700703,660.42,659.97,1.958]
[1751970856491,1.700703,660.41,659.97,1.958]
[1751970857191,0.97785944,660.55,659.97,1.958]
[1751970857391,2.2704624,660.56,659.97,1.958]
[1751970857592,1.7007766,660.41,659.97,1.958]
[1751970857790,0.97785944,660.54,659.97,1.958]
[1751970857989,2.2704624,660.55,659.97,1.958]
[1751970858192,0.2635575,660.6,659.97,1.958]
[1751970858990,1.7008727,660.41,659.97,1.958]
[1751970859793,1.7008727,660.41,659.94,1.7025414]
[1751970860390,1.7008727,660.41,659.95,1.7025414]
[1751970860795,1.7008727,660.42,659.96,1.7025414]
[1751970861297,1.7008727,660.41,659.96,1.7025414]
[1751970862198,1.7008727,660.39,660.0,1.7025414]
[1751970862395,1.7008727,660.38,660.0,1.7025414]
[1751970862594,1.7008727,660.38,660.01,1.934]
[1751970863695,1.7008727,660.38,660.01,3.6365414]
[1751970863996,1.7016169,660.38,660.01,3.6372229]
[1751970864300,1.7016169,660.37,660.01,3.6372229]
[1751970865506,1.7016169,660.38,660.01,3.6372229]
[1751970868309,1.7016169,660.37,660.02,1.7032229]
[1751970868806,1.7016169,660.36,660.03,1.7032229]
[1751970869004,2.2678303,660.47,660.03,1.7032229]
[1751970869005,1.7016169,660.37,660.03,1.7032229]
[1751970869206,1.7016169,660.36,660.03,1.7032229]
[1751970869803,1.7018658,660.36,660.03,1.7034602]
[1751970870807,1.7018658,660.36,660.01,1.934]
[1751970870808,1.7018658,660.37,660.02,1.7034602]
[1751970875512,1.7018658,660.36,660.02,1.7034602]
[1751970876109,1.7018658,660.36,660.03,1.7034602]
[1751970876915,1.7018658,660.37,660.02,1.7034602]
[1751970878014,1.7018658,660.42,660.07,1.7034602]
[1751970880813,1.7018658,660.41,660.08,1.7034602]
[1751970881516,1.7018658,660.42,660.06,1.7034602]
[1751970882117,1.7018658,660.43,660.05,1.7034602]
[1751970884011,1.7018658,660.46,660.01,1.934]
[1751970884513,1.7018658,660.54,660.03,1.7034602]
[1751970884712,1.7018658,660.56,660.04,1.7034602]
[1751970885317,1.7018658,660.57,660.03,1.7034602]
[1751970885520,1.7018658,660.73,660.2,1.7034602]
[1751970885814,1.7018658,660.73,660.01,1.934]
[1751970885815,1.7018658,660.7,660.23,1.7034602]
[1751970886020,1.7018658,660.74,660.2,1.7034602]
[1751970886319,1.7018658,660.78,660.16,1.7034602]
[1751970886918,1.7018658,660.77,660.17,1.7034602]
[1751970887118,1.7018658,660.79,660.15,1.7034602]
[1751970888218,1.7018658,660.81,660.13,1.7034602]
[1751970889117,1.7018658,660.82,660.12,1.7034602]
[1751970890227,1.7018658,660.83,660.12,1.7034602]
[1751970890421,1.7018658,660.83,660.11,1.7034602]
[1751970891222,1.96535345,660.84,660.1,1.7034602]
[1751970892116,0.26348765,660.84,660.09,1.7034602]
[1751970896025,1.7018658,660.83,660.15,1.7034602]
[1751970896220,1.96535345,660.84,660.14,1.7034602]
[1751970896821,1.96535345,660.84,660.13,1.7034602]
[1751970897320,0.26348765,660.84,660.13,1.7034602]
[1751970897725,0.26348765,660.84,660.11,1.7034602]
[1751970900823,0.26348765,660.84,660.12,1.7034602]
[1751970901828,0.26348765,660.84,660.13,1.7034602]
[1751970902124,0.26348765,660.84,660.12,1.7034602]
[1751970902521,0.26348765,660.84,660.01,1.934]
[1751970902522,0.26348765,660.84,660.13,1.7034602]
[1751970903924,0.26348765,660.84,660.12,1.7034602]
[1751970904128,0.26348765,660.84,660.11,1.7034602]
[1751970904930,0.26348765,660.84,660.09,1.7034602]
[1751970905428,0.26348765,660.84,660.08,1.7034602]
[1751970906128,0.26348765,660.84,660.07,1.7034602]
[1751970907630,0.26348765,660.84,660.08,1.7034602]
[1751970908129,0.26348765,660.84,660.06,1.7034602]
[1751970908629,0.26348765,660.84,660.07,1.7034602]
[1751970908829,0.26348765,660.84,660.06,1.7034602]
[1751970909932,0.26348765,660.84,660.04,1.7034602]
[1751970910228,0.26348765,660.84,660.06,1.7034602]
[1751970911028,0.26348765,660.84,660.07,1.7034602]
[1751970911728,0.26348765,660.84,660.08,1.7034602]
[1751970911929,0.26348765,660.84,660.07,1.7034602]
[1751970913329,1.7018658,660.97,660.04,1.7034602]
[1751970913529,1.7018658,660.97,660.03,1.7034602]
[1751970913730,0.26342183,660.93,660.04,1.7034602]
[1751970914335,0.26342183,660.93,660.08,1.7034602]
[1751970914748,0.26342183,660.93,660.1,1.7034602]
[1751970920040,0.26342183,660.93,660.09,1.7034602]
[1751970920838,0.26342183,660.93,660.11,1.7034602]
[1751970923236,0.26342183,660.93,660.15,1.7034602]
[1751970923640,0.26342183,660.93,660.16,2.213]
[1751970924134,0.26342183,660.93,660.16,3.9164602]
[1751970924338,1.7018658,661.03,660.16,2.213]
[1751970924538,0.26339193,661.02,660.16,2.213]
[1751970929944,0.26339193,661.02,660.2,1.7034602]
[1751970930239,0.26339193,661.02,660.26,1.7034602]
[1751970932447,0.26339193,661.02,660.21,1.7034602]
[1751970934749,0.26339193,661.02,660.16,2.213]
[1751970934750,0.26339193,661.02,660.18,1.7034602]
[1751970935243,1.96525773,661.02,660.18,1.7034602]
[1751970935443,1.7018658,660.99,660.23,1.7034602]
[1751970936146,1.7018658,660.98,660.23,1.7034602]
[1751970936548,1.7018658,660.97,660.24,1.7034602]
[1751970936853,1.7018658,660.99,660.21,1.7034602]
[1751970937147,1.96525773,661.02,660.17,1.7034602]
[1751970937348,1.7018658,661.01,660.18,1.7034602]
[1751970938150,0.26339193,661.02,660.18,1.7034602]
[1751970938151,1.7018658,661.0,660.18,1.7034602]
[1751970938351,1.7018658,661.0,660.19,1.7034602]
[1751970939151,1.7018658,660.99,660.19,1.7034602]
[1751970940149,1.7018658,660.96,660.21,1.7034602]
[1751970940348,1.7018658,660.92,660.26,1.7034602]
[1751970941049,1.7018658,660.89,660.23,1.7034602]
[1751970941249,1.7018658,660.87,660.24,1.7034602]
[1751970942253,1.7018658,660.86,660.25,1.7034602]
[1751970943156,1.7018658,660.84,660.27,1.7034602]
[1751970943351,1.7018658,660.83,660.26,1.7034602]
[1751970943651,1.7018658,660.83,660.16,2.213]
[1751970943652,1.7018658,660.8,660.22,1.7034602]
[1751970944155,1.7018658,660.78,660.24,1.7034602]
[1751970944655,1.7018658,660.79,660.24,1.7034602]
[1751970944857,1.7018658,660.77,660.26,1.7034602]
[1751970945056,1.7018658,660.78,660.26,1.7034602]
[1751970945255,1.7018658,660.76,660.26,1.7034602]
[1751970946454,1.7018658,660.79,660.22,1.7034602]
[1751970947954,1.7018658,660.87,660.16,2.213]
[1751970948556,1.7018658,660.88,660.16,2.213]
[1751970956466,1.7018658,660.87,660.16,2.213]
[1751970957672,1.7018658,660.82,660.19,1.7034602]
[1751970958170,1.7018658,660.79,660.23,1.7034602]
[1751970959270,1.7018658,660.79,660.24,1.7034602]
[1751970963076,1.7018658,660.76,660.29,1.7034602]
[1751970963472,1.7018658,660.8,660.23,1.7034602]
[1751970966077,1.7018658,660.8,660.24,1.868]
[1751970970979,1.7018658,660.81,660.24,1.868]
[1751970973485,1.7018658,660.8,660.24,1.868]
[1751970974589,1.7018658,660.79,660.24,3.5714602]
[1751970978691,1.7018658,660.79,660.25,1.7034602]
[1751970980092,1.7018658,660.78,660.26,1.7034602]
[1751970980992,1.7018658,660.76,660.29,1.7034602]
[1751970987195,1.7018658,660.76,660.3,1.7034602]
[1751970987396,1.7018658,660.75,660.3,1.7034602]
[1751970988199,1.7018658,660.76,660.3,1.7034602]
[1751970988495,1.7018658,660.75,660.3,1.7034602]
[1751970988796,1.7018658,660.75,660.24,1.868]
[1751970988797,1.7018658,660.76,660.29,1.7034602]
[1751970990202,1.7018658,660.75,660.3,1.7034602]
[1751970990799,1.7018658,660.76,660.29,1.7034602]
[1751970991200,1.7018658,660.76,660.24,1.868]
[1751970991201,1.7018658,660.75,660.3,1.7034602]
[1751970992201,1.7018658,660.74,660.31,1.7034602]
[1751970992698,1.7018658,660.75,660.29,1.7034602]
[1751970993201,1.7018658,660.74,660.3,1.7034602]
[1751970994497,1.7018658,660.74,660.31,1.7034602]
[1751970995000,1.7018658,660.74,660.3,1.7034602]
[1751970996297,1.7018658,660.73,660.31,1.7034602]
[1751970997800,1.7018658,660.74,660.29,1.7034602]
[1751970999100,1.7018658,660.74,660.3,1.7034602]
[1751970999302,1.7018658,660.75,660.27,1.7034602]
[1751971000102,1.7018658,660.74,660.28,1.7034602]
[1751971002109,1.7018658,660.74,660.29,1.7034602]
[1751971002307,1.7018658,660.74,660.28,1.7034602]
[1751971002505,1.7018658,660.74,660.29,1.7034602]
[1751971003107,1.7018658,660.75,660.27,1.7034602]
[1751971004909,1.7018658,660.74,660.28,1.7034602]
[1751971006109,1.7018658,660.75,660.28,1.7034602]
[1751971006404,1.7018658,660.74,660.28,1.7034602]
[1751971006606,1.7018658,660.75,660.27,1.7034602]
[1751971007709,1.7018658,660.74,660.28,1.7034602]
[1751971009211,1.7018658,660.73,660.29,1.7034602]
[1751971010808,1.7018658,660.73,660.3,2.011]
[1751971013010,1.7018658,660.72,660.31,1.7034602]
[1751971014510,1.7018658,660.71,660.32,1.7034602]
[1751971016615,1.7018658,660.73,660.3,3.7144602]
[1751971017713,1.7018658,660.73,660.3,2.011]
[1751971018713,1.7018658,660.73,660.3,3.7144602]
[1751971018917,1.7018658,660.76,660.3,2.011]
[1751971019213,1.7018658,660.75,660.3,2.011]
[1751971019712,1.7018658,660.73,660.31,1.7034602]
[1751971020516,1.7018658,660.72,660.32,1.7034602]
[1751971021013,1.7018658,660.73,660.31,1.7034602]
[1751971021714,1.7018658,660.74,660.3,3.7144602]
[1751971022014,1.7018658,660.79,660.3,2.011]
[1751971023015,1.7018658,660.87,660.3,3.7144602]
[1751971023416,1.7018658,660.88,660.3,2.011]
[1751971024322,1.7018658,660.89,660.3,2.011]
[1751971025418,1.7018658,660.9,660.3,2.011]
[1751971027425,1.7018658,660.91,660.3,2.011]
[1751971028420,1.7018658,660.92,660.3,2.011]
[1751971029024,1.7018658,660.92,660.25,1.7034602]
[1751971030023,1.7018658,660.91,660.25,1.7034602]
[1751971030326,1.7018658,660.92,660.25,1.7034602]
[1751971030921,1.7018658,660.88,660.31,1.7034602]
[1751971031424,1.7018658,660.88,660.3,1.7034602]
[1751971031724,1.7018658,660.87,660.33,1.7034602]
[1751971033425,1.7018658,660.87,660.32,1.7034602]
[1751971035030,1.7018658,660.87,660.33,1.7034602]
[1751971037631,1.7018658,660.89,660.31,3.3734602]
[1751971038028,1.7018658,660.88,660.32,1.7034602]
[1751971038232,1.7018658,660.87,660.32,1.7034602]
[1751971038433,1.7018658,660.88,660.32,1.7034602]
[1751971038630,1.7018658,660.87,660.33,1.7034602]
[1751971039735,2.53122223,661.02,660.33,1.7034602]
[1751971039935,2.53122223,661.02,660.31,1.67]
[1751971040134,0.26339193,661.02,660.31,1.67]
[1751971041736,1.6998547,660.88,660.31,3.3677767]
[1751971046336,1.6998547,660.89,660.31,3.3677767]